Cogmind - Beta 14 @@@ ROGUE MODE // 2025.03.20 @ 16:53:25 Player: Chair Result: Destroyed by H-71 Marshal with Heavy Mass Driver Performance ------------- Evolutions (7) 3500 Regions Visited (12) 2400 Robots Destroyed (0) 0 Value Destroyed (0) 0 Prototype IDs (28) 560 Alien Tech Used (0) 0 Bonus (5185) 5185 TOTAL SCORE: 11645 Bonus ------- Pacifist 3885 Entered DSFs 1000 Aligned with FarCom 300 Cogmind --------- Core Integrity 0/1300 Matter 300/300 Energy 99/100 System Corruption 4% Temperature Cool (0) Movement Core (50) Location -3/Research Parts ------- > --- POWER (1) -------- (None) > --- PROPULSION (2) --- (None) > --- UTILITY (16) ----- (None) > --- WEAPON (2) ------- (None) > --- INVENTORY (5) ---- Improved Transmission Jammer Supersonic Drone Bay (1/1) Power Maul Heavy Pick Heavy Pick Peak State ------------ > --- POWER ------------ Light Ion Engine > --- PROPULSION ------- (None) > --- UTILITY ---------- Advanced Weight Redist. System Visual Processing Unit Improved Signal Interpreter Advanced Terrain Scan Processor Transmission Jammer Hacking Suite System Shield Corruption Screen Corruption Screen Corruption Screen > --- WEAPON ----------- Heavy Pick > --- INVENTORY -------- Supersonic Drone Bay Katana Heavy Pick Heavy Pick [Rating: 42] Favorites ----------- Power Light Ion Engine Engine Light Ion Engine Propulsion None Utility Corruption Screen Device Weight Redist. System Processor Corruption Screen Hackware Hacking Suite Weapon Mace Impact Weapon Mace Slashing Weapon Katana Piercing Weapon Heavy Pick Build | -11 -10 -10 -10 -9 -8 -7 -7 -6 -5 -5 -4 -3 ------- Run | Yrd Mat Min Exi Min Mat Fac DSF Fac Fac DSF Fac Res Slots Evolved 14 | . . . . . 4 2 . 2 2 . 2 2 Power . | . . . . . . . . . . . . . Propulsion . | . . . . . . . . . . . . . Utility 14 | . . . . . 4 2 . 2 2 . 2 2 Weapon . | . . . . . . . . . . . . . Parts Attached 20 | . 2 . 1 . 4 5 1 4 2 . . 1 Power 1 | . . . . . . . . 1 . . . . Engine 1 | . . . . . . . . 1 . . . . Core . | . . . . . . . . . . . . . Reactor . | . . . . . . . . . . . . . Propulsion . | . . . . . . . . . . . . . Treads . | . . . . . . . . . . . . . Leg . | . . . . . . . . . . . . . Wheel . | . . . . . . . . . . . . . Hover . | . . . . . . . . . . . . . Flight . | . . . . . . . . . . . . . Utility 14 | . 1 . 1 . 4 3 1 2 1 . . 1 Device 4 | . . . 1 . . . 1 1 1 . . . Storage . | . . . . . . . . . . . . . Processor 7 | . 1 . . . 3 1 . 1 . . . 1 Hackware 3 | . . . . . 1 2 . . . . . . Protection . | . . . . . . . . . . . . . Artifact . | . . . . . . . . . . . . . Weapon 5 | . 1 . . . . 2 . 1 1 . . . Energy Gun . | . . . . . . . . . . . . . Energy Cannon . | . . . . . . . . . . . . . Ballistic Gun . | . . . . . . . . . . . . . Ballistic Cannon . | . . . . . . . . . . . . . Launcher . | . . . . . . . . . . . . . Special Weapon . | . . . . . . . . . . . . . Impact Weapon 2 | . 1 . . . . 1 . . . . . . Slashing Weapon 2 | . . . . . . 1 . . 1 . . . Piercing Weapon 1 | . . . . . . . . 1 . . . . Special Melee Weapon . | . . . . . . . . . . . . . Unidentified Prototypes . | . . . . . . . . . . . . . Parts Lost 10 | . . . . . 1 . . 4 . . . 5 Power . | . . . . . . . . . . . . . Propulsion . | . . . . . . . . . . . . . Utility 8 | . . . . . 1 . . 3 . . . 4 Weapon 2 | . . . . . . . . 1 . . . 1 Highest Loss Streak 5 | . . . . . 1 . . 4 . . . 5 To Critical Strikes . | . . . . . . . . . . . . . Average Slot Usage (%) 42 | . 28 28 35 42 59 57 69 67 31 35 31 27 Device 5 | . . . 7 14 9 7 7 8 4 5 5 3 Processor 24 | . 14 14 14 14 35 33 38 37 23 23 21 19 Hackware 3 | . . . . . 6 8 15 12 . . . . Impact Weapon 5 | . 14 14 14 14 9 7 7 2 . . . . Slashing Weapon 1 | . . . . . . . . . 2 5 5 3 Peak Build Rating 42 | . 4 4 12 12 28 35 31 42 20 20 20 25 Average Rating 20 | . 3 4 7 12 26 30 31 36 18 20 20 20 On Entrance 15 | . . 4 4 12 12 25 35 31 15 20 20 20 Naked Turns 20 | . 3 . . . . . . . . . . 17 Heaviest Build 7 | . 2 2 3 3 3 3 3 7 2 2 2 2 Greatest Support 12 | 3 3 3 3 3 3 3 3 12 3 3 3 3 Greatest Overweight (x) 1 | . . . . . . . . 1 . . . . Average Overweight (x) . | . . . . . . . . . . . . . Largest Inventory Capacity 5 | 5 5 5 5 5 5 5 5 5 5 5 5 5 Average Capacity 5 | 5 5 5 5 5 5 5 5 5 5 5 5 5 Most Carried 5 | . 5 5 5 5 5 5 5 5 5 4 5 5 Average Carried 4 | . 4 5 5 5 5 5 5 4 4 4 4 5 Final Capacity 5 | 5 5 5 5 5 5 5 5 5 5 5 5 5 Final Carried 5 | . 5 5 5 5 5 5 5 5 4 4 5 5 Class Distribution -------------------- 76% | Mutant 23% | Hacker-Mutant Dominant Class ---------------- Mutant | -10/Materials Mutant | -10/Mines Mutant | -10/Exiles Mutant | -9/Mines Mutant | -8/Materials Hacker-Mutant | -7/Factory Hacker-Mutant | -7/DSF Hacker-Mutant | -6/Factory Mutant | -5/Factory Mutant | -5/DSF Mutant | -4/Factory Mutant | -3/Research Resources | -11 -10 -10 -10 -9 -8 -7 -7 -6 -5 -5 -4 -3 ----------- Run | Yrd Mat Min Exi Min Mat Fac DSF Fac Fac DSF Fac Res Matter Collected 351 | 194 . 26 . . . . 67 1 . . . 63 Remotely . | . . . . . . . . . . . . . Salvage Created . | . . . . . . . . . . . . . Parts . | . . . . . . . . . . . . . Haulers Intercepted . | . . . . . . . . . . . . . Recyclers Shooed . | . . . . . . . . . . . . . Parts Field Recycled . | . . . . . . . . . . . . . Retrieved Matter . | . . . . . . . . . . . . . Parts Self-Destructed . | . . . . . . . . . . . . . Prevented . | . . . . . . . . . . . . . Kills | -11 -10 -10 -10 -9 -8 -7 -7 -6 -5 -5 -4 -3 ------- Run | Yrd Mat Min Exi Min Mat Fac DSF Fac Fac DSF Fac Res Combat Hostiles Destroyed . | . . . . . . . . . . . . . Classes Destroyed . | . . . . . . . . . . . . . Best Kill Streak . | . . . . . . . . . . . . . Combat Bots Only . | . . . . . . . . . . . . . Max Kills in Single Turn . | . . . . . . . . . . . . . Gunslinging . | . . . . . . . . . . . . . Exploded . | . . . . . . . . . . . . . Melee . | . . . . . . . . . . . . . Uniques/NPCs Destroyed . | . . . . . . . . . . . . . Combat | -11 -10 -10 -10 -9 -8 -7 -7 -6 -5 -5 -4 -3 -------- Run | Yrd Mat Min Exi Min Mat Fac DSF Fac Fac DSF Fac Res Hostile Shots Fired 139 | . . 3 . . 16 . 6 37 . 1 . 76 Missed 56 | . . . . . 5 . 3 18 . 1 . 29 Damage Taken 2233 | . . 34 . . 175 . 59 528 . . . 1437 Core 1872 | . . 34 . . 95 . 12 422 . . . 1309 Absorbed by Shields . | . . . . . . . . . . . . . Core Remaining (%) 88 | 100 . . . 86 82 . 98 50 . 100 100 . Volleys Fired . | . . . . . . . . . . . . . Largest . | . . . . . . . . . . . . . Hottest . | . . . . . . . . . . . . . Shots Fired . | . . . . . . . . . . . . . Gun . | . . . . . . . . . . . . . Cannon . | . . . . . . . . . . . . . Launcher . | . . . . . . . . . . . . . Special . | . . . . . . . . . . . . . Kinetic . | . . . . . . . . . . . . . Thermal . | . . . . . . . . . . . . . Explosive . | . . . . . . . . . . . . . Electromagnetic . | . . . . . . . . . . . . . Robot Hit Streak . | . . . . . . . . . . . . . Robot Miss Streak . | . . . . . . . . . . . . . Penetration Max . | . . . . . . . . . . . . . Secondary Targets . | . . . . . . . . . . . . . Shots Hit Robots . | . . . . . . . . . . . . . Core Hits 3 | . . . . . 2 . . 1 . . . . Critical Kills . | . . . . . . . . . . . . . Critical Parts Destroyed . | . . . . . . . . . . . . . Critical Strikes . | . . . . . . . . . . . . . Melee Attacks 47 | . 3 . . . 8 7 . 2 5 . 2 20 Impact 18 | . 3 . . . 8 7 . . . . . . Slashing 27 | . . . . . . . . . 5 . 2 20 Piercing 2 | . . . . . . . . 2 . . . . Sneak Attacks . | . . . . . . . . . . . . . Combat Hostiles . | . . . . . . . . . . . . . Follow-up Attacks . | . . . . . . . . . . . . . Damage Inflicted 21 | . . . . . 17 . . 4 . . . . Guns . | . . . . . . . . . . . . . Cannons . | . . . . . . . . . . . . . Explosions . | . . . . . . . . . . . . . Melee . | . . . . . . . . . . . . . Ramming 21 | . . . . . 17 . . 4 . . . . Kinetic . | . . . . . . . . . . . . . Thermal . | . . . . . . . . . . . . . Explosive . | . . . . . . . . . . . . . Electromagnetic . | . . . . . . . . . . . . . Impact . | . . . . . . . . . . . . . Slashing . | . . . . . . . . . . . . . Piercing . | . . . . . . . . . . . . . Highest Corruption 4 | . . . . . . . . . . . . 4 Average Corruption 4 | . . . . . . . . . . . . 4 Corruption Purged . | . . . . . . . . . . . . . Corruption Blocked 2 | . . . . . 1 . . . . . . 1 Overload Shots . | . . . . . . . . . . . . . Overflow Damage . | . . . . . . . . . . . . . Projectiles . | . . . . . . . . . . . . . Explosions . | . . . . . . . . . . . . . Melee . | . . . . . . . . . . . . . Knockbacks . | . . . . . . . . . . . . . Impact . | . . . . . . . . . . . . . Kinetic . | . . . . . . . . . . . . . Secondary . | . . . . . . . . . . . . . Self-Inflicted Damage 10 | . . . . . 8 . . 2 . . . . Shots . | . . . . . . . . . . . . . Rammed 4 | . . . . . 3 . . 1 . . . . Targets Rammed 4 | . . . . . 3 . . 1 . . . . Kicked . | . . . . . . . . . . . . . Crushed . | . . . . . . . . . . . . . Highest Temperature . | . . . . . . . . . . . . . Average Temperature . | . . . . . . . . . . . . . Received Heat Transfer 210 | . . 46 . . 72 . 20 63 . . . 9 Siege Activations . | . . . . . . . . . . . . . Robots Corrupted . | . . . . . . . . . . . . . Combat Hostiles . | . . . . . . . . . . . . . Parts Fried . | . . . . . . . . . . . . . Impact Corruptions . | . . . . . . . . . . . . . Robots Melted . | . . . . . . . . . . . . . Combat Hostiles . | . . . . . . . . . . . . . Parts Melted . | . . . . . . . . . . . . . Heat Transferred . | . . . . . . . . . . . . . Parts Sabotaged . | . . . . . . . . . . . . . Parts Stolen . | . . . . . . . . . . . . . Parts Stripped . | . . . . . . . . . . . . . Power Chain Reactions . | . . . . . . . . . . . . . Alert | -11 -10 -10 -10 -9 -8 -7 -7 -6 -5 -5 -4 -3 ------- Run | Yrd Mat Min Exi Min Mat Fac DSF Fac Fac DSF Fac Res Peak Influence 310 | . 32 51 . . 65 51 50 143 88 61 68 310 Initial 61 | . . 6 . . . 29 35 25 50 61 31 35 Average 55 | . 5 17 . . 24 44 35 63 72 61 42 111 Maximum Alert Level 1 | . . . . . . . . . . . . 1 Low Security (%) 97 | 100 100 100 . 100 100 100 100 100 100 100 100 86 Level 1 2 | . . . . . . . . . . . . 13 Level 2 . | . . . . . . . . . . . . . Level 3 . | . . . . . . . . . . . . . Level 4 . | . . . . . . . . . . . . . Level 5 . | . . . . . . . . . . . . . High Security . | . . . . . . . . . . . . . Max Security . | . . . . . . . . . . . . . Squads Dispatched 8 | . 1 . . . 1 . 1 2 . . . 3 Investigation 2 | . . . . . 1 . . . . . . 1 Extermination . | . . . . . . . . . . . . . Reinforcement 6 | . 1 . . . . . 1 2 . . . 2 Assault . | . . . . . . . . . . . . . Garrison . | . . . . . . . . . . . . . Intercept . | . . . . . . . . . . . . . Searches Triggered . | . . . . . . . . . . . . . Construction Impeded . | . . . . . . . . . . . . . Haulers Reinforced . | . . . . . . . . . . . . . Active Scanning Responses . | . . . . . . . . . . . . . Cargo Convoy Interrupts . | . . . . . . . . . . . . . Stealth | -11 -10 -10 -10 -9 -8 -7 -7 -6 -5 -5 -4 -3 --------- Run | Yrd Mat Min Exi Min Mat Fac DSF Fac Fac DSF Fac Res Distress Signals 5 | . . 1 . . 1 . . 1 . . . 2 Communications Jammed . | . . . . . . . . . . . . . Distress Signals . | . . . . . . . . . . . . . Times Spotted 62 | . 2 10 . . 9 . 6 12 . 1 1 21 Peak Tracking Total 10 | . 1 7 . . 7 . 5 9 . 1 1 10 Tactical Retreats 6 | . . 3 . . 1 . . . . . . 2 Traps | -11 -10 -10 -10 -9 -8 -7 -7 -6 -5 -5 -4 -3 ------- Run | Yrd Mat Min Exi Min Mat Fac DSF Fac Fac DSF Fac Res Traps Triggered 2 | . . . . . . . 1 . 1 . . . Indirectly . | . . . . . . . . . . . . . Trap Hack Attempts . | . . . . . . . . . . . . . Triggered . | . . . . . . . . . . . . . Disarmed . | . . . . . . . . . . . . . Reprogrammed . | . . . . . . . . . . . . . Reused . | . . . . . . . . . . . . . Traps Extracted . | . . . . . . . . . . . . . Installed . | . . . . . . . . . . . . . Triggered . | . . . . . . . . . . . . . Machines | -11 -10 -10 -10 -9 -8 -7 -7 -6 -5 -5 -4 -3 ---------- Run | Yrd Mat Min Exi Min Mat Fac DSF Fac Fac DSF Fac Res Machines Disabled . | . . . . . . . . . . . . . Max in Single Turn . | . . . . . . . . . . . . . Garrison Access 1 | . . . . . . . . . . . . 1 Machines Repaired . | . . . . . . . . . . . . . Machines Dismantled . | . . . . . . . . . . . . . Machines Sabotaged . | . . . . . . . . . . . . . Overloaded Fab Kills . | . . . . . . . . . . . . . Hacking | -11 -10 -10 -10 -9 -8 -7 -7 -6 -5 -5 -4 -3 --------- Run | Yrd Mat Min Exi Min Mat Fac DSF Fac Fac DSF Fac Res Machines Accessed 28 | . 3 . 1 . 3 2 . 6 5 . 3 5 Terminals 25 | . 3 . . . 3 2 . 5 5 . 3 4 Fabricators 1 | . . . . . . . . 1 . . . . Repair Stations . | . . . . . . . . . . . . . Recycling Units . | . . . . . . . . . . . . . Scanalyzers . | . . . . . . . . . . . . . Garrison Access 1 | . . . . . . . . . . . . 1 Total Hacks 81 | . 13 . 1 . 10 4 . 24 9 . 6 14 Successful 34 | . 4 . 1 . 3 2 . 11 4 . 3 6 Failed 46 | . 8 . . . 7 2 . 13 5 . 3 8 Catastrophic 7 | . 2 . . . 1 1 . 2 1 . . . Database Lockouts 1 | . 1 . . . . . . . . . . . Manual 43 | . 6 . 1 . 6 2 . 14 3 . 3 8 Terminals 77 | . 13 . . . 10 4 . 22 9 . 6 13 Fabricators 2 | . . . . . . . . 2 . . . . Repair Stations . | . . . . . . . . . . . . . Recycling Units . | . . . . . . . . . . . . . Scanalyzers . | . . . . . . . . . . . . . Garrison Access 1 | . . . . . . . . . . . . 1 Terminal Hacks 22 | . 4 . 1 . 2 1 . 7 3 . 2 2 Part Schematic 1 | . 1 . . . . . . . . . . . Prototype ID Bank 2 | . . . . . . . . 2 . . . . Open DSF 5 | . . . . . . 1 . 1 2 . 1 . Level Access Points 2 | . . . . . 1 . . 1 . . . . Branch Access Points 2 | . 1 . . . . . . 1 . . . . Emergency Access Points 2 | . . . . . . . . 2 . . . . Terminal Index 3 | . 1 . . . . . . . . . 1 1 Unreport Threat 1 | . 1 . . . . . . . . . . . Locate Traps 3 | . . . . . 1 . . . 1 . . 1 Derelict Proto ID Bank 1 | . . . 1 . . . . . . . . . Fabricator Hacks . | . . . . . . . . . . . . . Repair Station Hacks . | . . . . . . . . . . . . . Recycling Unit Hacks . | . . . . . . . . . . . . . Scanalyzer . | . . . . . . . . . . . . . Garrison Access Hacks 1 | . . . . . . . . . . . . 1 Seal Access 1 | . . . . . . . . . . . . 1 Unauthorized Hacks 11 | . . . . . 1 1 . 4 1 . 1 3 Terminals 11 | . . . . . 1 1 . 4 1 . 1 3 Track 1 | . . . . . . . . 1 . . . . Botnet 10 | . . . . . 1 1 . 3 1 . 1 3 Fabricators . | . . . . . . . . . . . . . Repair Stations . | . . . . . . . . . . . . . Recycling Units . | . . . . . . . . . . . . . Scanalyzers . | . . . . . . . . . . . . . Garrison Access . | . . . . . . . . . . . . . Data Cores Recovered . | . . . . . . . . . . . . . Used . | . . . . . . . . . . . . . Hacking Detections 22 | . 3 . . . 3 1 . 5 4 . 2 4 Full Trace Events 2 | . . . . . 1 . . . . . . 1 Feedback Events 1 | . . . . . . . . . . . . 1 Corruption 1 | . . . . . . . . . . . . 1 Feedback Blocked . | . . . . . . . . . . . . . Robot Schematics Acquired . | . . . . . . . . . . . . . Robots Built . | . . . . . . . . . . . . . Authchips . | . . . . . . . . . . . . . Time . | . . . . . . . . . . . . . Total Robot Build Rating . | . . . . . . . . . . . . . Part Schematics Acquired 1 | . 1 . . . . . . . . . . . Parts Built . | . . . . . . . . . . . . . Authchips . | . . . . . . . . . . . . . Time . | . . . . . . . . . . . . . Total Part Build Rating . | . . . . . . . . . . . . . Parts Repaired . | . . . . . . . . . . . . . Time . | . . . . . . . . . . . . . Parts Recycled . | . . . . . . . . . . . . . Recycled Matter . | . . . . . . . . . . . . . Retrieved Matter . | . . . . . . . . . . . . . Retrieved Components . | . . . . . . . . . . . . . Parts Scanalyzed . | . . . . . . . . . . . . . Part Schematics Acquired . | . . . . . . . . . . . . . Parts Damaged . | . . . . . . . . . . . . . Bothacking | -11 -10 -10 -10 -9 -8 -7 -7 -6 -5 -5 -4 -3 ------------ Run | Yrd Mat Min Exi Min Mat Fac DSF Fac Fac DSF Fac Res Used RIF Installer . | . . . . . . . . . . . . . Robots Hacked . | . . . . . . . . . . . . . Non-combat . | . . . . . . . . . . . . . Combat . | . . . . . . . . . . . . . Robot Hacks Applied . | . . . . . . . . . . . . . Relay Couplers Released . | . . . . . . . . . . . . . Fabnet Peak Effective % . | . . . . . . . . . . . . . Robots Rewired 1 | . . . . . . . . . . . 1 . Allies Hacked . | . . . . . . . . . . . . . Hacks Repelled . | . . . . . . . . . . . . . Allies | -11 -10 -10 -10 -9 -8 -7 -7 -6 -5 -5 -4 -3 -------- Run | Yrd Mat Min Exi Min Mat Fac DSF Fac Fac DSF Fac Res Total Allies 1 | . . . . . . . . . . . 1 . Largest Group 1 | . . . . . . . . . . . 1 . Highest-Rated Group 49 | . . . . . . . . . . . 49 . Highest-Rated Ally 49 | . . . . . . . . . . . 49 . Total Orders . | . . . . . . . . . . . . . Ally Attacks 1 | . . . . . . . . . . . 1 . Total Damage . | . . . . . . . . . . . . . Kills . | . . . . . . . . . . . . . Allies Corrupted . | . . . . . . . . . . . . . Allies Melted . | . . . . . . . . . . . . . Intel | -11 -10 -10 -10 -9 -8 -7 -7 -6 -5 -5 -4 -3 ------- Run | Yrd Mat Min Exi Min Mat Fac DSF Fac Fac DSF Fac Res Robot Analysis Total . | . . . . . . . . . . . . . Derelict Logs Recovered 1 | . . 1 . . . . . . . . . . Drone Launches . | . . . . . . . . . . . . . Drone Recoveries . | . . . . . . . . . . . . . Exploration | -11 -10 -10 -10 -9 -8 -7 -7 -6 -5 -5 -4 -3 ------------- Run | Yrd Mat Min Exi Min Mat Fac DSF Fac Fac DSF Fac Res Turns Passed 1939 | 12 65 265 118 20 197 179 50 322 230 15 129 337 Spaces Moved 3251 | 23 95 527 232 38 282 303 85 518 357 30 221 540 Core 3251 | 23 95 527 232 38 282 303 85 518 357 30 221 540 Treads . | . . . . . . . . . . . . . Legs . | . . . . . . . . . . . . . Wheels . | . . . . . . . . . . . . . Hover . | . . . . . . . . . . . . . Flight . | . . . . . . . . . . . . . Fastest Speed 50 | 50 50 50 50 50 50 50 50 50 50 50 50 50 Average Speed 51 | 50 50 50 50 50 50 50 50 57 50 50 50 50 Slowest Speed 100 | 50 50 50 50 50 50 50 50 100 50 50 50 50 Overloaded Moves . | . . . . . . . . . . . . . Propulsion Burnouts . | . . . . . . . . . . . . . Robots Hopped . | . . . . . . . . . . . . . Cave-ins Triggered . | . . . . . . . . . . . . . Exploration Rate (%) 31 | 3 25 80 64 12 28 7 88 20 10 44 12 13 Regions Visited 12 Branch Regions 3 Pre-discovered Areas . | . . . . . . . . . . . . . Known Exits Taken 6 | . 1 . . . 1 1 . 1 1 . 1 . Unknown Exits Taken 4 | 1 . 1 1 1 . . . . . . . . Scrap Searched 1 | . . 1 . . . . . . . . . . Spaces Dug 42 | . 3 . . . 7 5 . 2 5 . 2 18 Terrain Destroyed 42 | . 3 . . . 7 5 . 2 5 . 2 18 Melee 42 | . 3 . . . 7 5 . 2 5 . 2 18 Projectile . | . . . . . . . . . . . . . AOE . | . . . . . . . . . . . . . Terrain Rammed . | . . . . . . . . . . . . . Walls Destroyed . | . . . . . . . . . . . . . Machines Disabled . | . . . . . . . . . . . . . Actions | -11 -10 -10 -10 -9 -8 -7 -7 -6 -5 -5 -4 -3 --------- Run | Yrd Mat Min Exi Min Mat Fac DSF Fac Fac DSF Fac Res Total 3429 | 22 105 527 232 38 321 315 91 539 399 29 235 576 Wait 83 | . 1 1 . 1 23 . 6 9 21 . 6 15 Move 3239 | 22 94 526 231 37 281 302 84 517 356 29 220 540 Hop . | . . . . . . . . . . . . . Pick Up 10 | . 5 . . . 1 . . 3 . . 1 . Fast Attach 16 | . 2 . 1 . 4 4 . 3 1 . . 1 Attach 2 | . . . . . . . . 1 1 . . . Detach . | . . . . . . . . . . . . . Swap 2 | . . . . . . 1 1 . . . . . Drop 5 | . . . . . 1 1 . 3 . . . . Fire . | . . . . . . . . . . . . . Melee 47 | . 3 . . . 8 7 . 2 5 . 2 20 Ram 4 | . . . . . 3 . . 1 . . . . Kick . | . . . . . . . . . . . . . Crush . | . . . . . . . . . . . . . Escape Stasis 15 | . . . . . . . . . 15 . . . Rewire 6 | . . . . . . . . . . . 6 . Trap . | . . . . . . . . . . . . . Miscellaneous . | . . . . . . . . . . . . . Route ------- -11/Scrapyard -10/Materials (discovered 2 exits: *Min x2) -10/Mines (discovered 3 exits: [*Mat x2] / *Exi) -10/Exiles (discovered 2 exits: [*Min x2]) -9/Mines -8/Materials (discovered 3 exits: *Fac x3) -7/Factory -7/DSF -6/Factory (discovered 6 exits: *Fac x4 / Low x2) -5/Factory (discovered 3 exits: *Ext / DSF / DSF) -5/DSF -4/Factory -3/Research History --------- Turn | Location | Event 4 | -11/Scrapyard | Discovered new exit (range 15) 13 | -11/Scrapyard | Entered Materials 50 | -10/Materials | Identified exit to Mines 71 | -10/Materials | Central database locked down 78 | -10/Materials | Entered Mines 209 | -10/Mines | Assembled infested the area 214 | -10/Mines | Learned 2 Materials zone layouts 218 | -10/Mines | Discovered new exit (range 6) 305 | -10/Mines | Build established: Mutant 328 | -10/Mines | Discovered new exit (range 9) 340 | -10/Mines | Deemed a non-threat by the Exiles lab entrance 341 | -10/Mines | Discovered new exit (range 5) 343 | -10/Mines | Entered Exiles 350 | -10/Exiles | Discovered new exit (range 16) 356 | -10/Exiles | Met 8R-AWN 364 | -10/Exiles | Met EX-HEX 385 | -10/Exiles | Met EX-BIN 394 | -10/Exiles | Aligned with FarCom system 395 | -10/Exiles | Given EX-Vault access code 407 | -10/Exiles | Opened EX-Vault 409 | -10/Exiles | Found Supersonic Drone Bay 421 | -10/Exiles | Warned to stay clear of 0b10 Research branches 436 | -10/Exiles | Met EX-DEC 456 | -10/Exiles | Discovered new exit (range 10) 461 | -10/Exiles | Left Exiles lab with Supersonic Drone Bay 461 | -10/Exiles | Entered Mines 470 | -9/Mines | Discovered new exit (range 12) 479 | -9/Mines | YI-UF0 nonchalantly dropped a Grenade Launcher on the ground 481 | -9/Mines | Entered Materials 481 | -8/Materials | Evolved 4 slots: Utility x4 508 | -8/Materials | Identified exit to Factory 678 | -8/Materials | Entered Factory 678 | -7/Factory | Evolved 2 slots: Utility x2 851 | -7/Factory | Identified exit to DSF 857 | -7/Factory | Entered DSF 867 | -7/DSF | Assembled infested the area 886 | -7/DSF | Additional patrols routed to DSF 900 | -7/DSF | Discovered new exit (range 15) 907 | -7/DSF | Entered Factory 907 | -6/Factory | Evolved 2 slots: Utility x2 1058 | -6/Factory | Build established: Hacker-Mutant 1141 | -6/Factory | Identified exit to Lower Caves 1141 | -6/Factory | Identified exit to Factory 1229 | -6/Factory | Entered another Factory area 1229 | -5/Factory | Evolved 2 slots: Utility x2 1231 | -5/Factory | Identified exit to DSF 1247 | -5/Factory | Lost 4 parts (3u1w) 1306 | -5/Factory | Discovered new exit (range 18) 1322 | -5/Factory | Identified exit to Extension 1459 | -5/Factory | Identified exit to DSF 1459 | -5/Factory | Entered DSF 1465 | -5/DSF | Discovered new exit (range 17) 1473 | -5/DSF | Identified exit to Factory 1474 | -5/DSF | Entered Factory 1474 | -4/Factory | Evolved 2 slots: Utility x2 1521 | -4/Factory | Build established: Mutant 1597 | -4/Factory | Discovered new exit (range 7) 1600 | -4/Factory | Identified exit to Research 1603 | -4/Factory | Entered Research 1603 | -3/Research | Evolved 2 slots: Utility x2 1904 | -3/Research | Spotted B-86 Titan 1926 | -3/Research | Core integrity fell below 50% 1933 | -3/Research | Core integrity fell below 20% 1940 | -3/Research | Destroyed by H-71 Marshal with Heavy Mass Driver Last Messages --------------- 01899_ C-35 Carver knocked back. 01899_ Knocked back. 01899_ K-01 Serf destroyed. 01899_ C-35 Carver knocked back. 01906_ K-01 Serf cleans the Graviton Restrictor. 01917_ Adv. Terrain Scan Processor severed. 01919_ Connecting with Terminal... >>Trojan(Botnet) Trojan loaded successfully. Testing... Terminal linked with 2 systems. Awaiting botnet instructions. 01920_ Adv. Signal Interpreter severed. 01922_ Visual Processing Unit destroyed. 01923_ Imp. Signal Interpreter destroyed. 01934_ ALERT: Hostiles spotted, dispatching reinforcements to Terminal R001. 01935_ U-05 Engineer builds a Wall. 01936_ Knocked back. 01939_ U-05 Engineer builds a Wall. Map ----- +----------------------------------------------------+ | ##??????????????# #???????????????????????????? | | ################# #??############?????????????? | | """T""" #? #?????????????? | | # #?????????????? | | # !! #?????????????? | | + !! #?????????????? | | ### """"" % # #?????????????? | | # """"" !![ # ! +?????????????? | | # """"" ![[ s###############?????????????? | | + ![ s #????????????????????? | | # s #????????????????????? | | # s #????????????????????? | | # swk #????????????????????? | | # ## ## ##########H #????????????????????? | | # ## ??# # # #????????????????????? | | " #????# ?# # k #????????????????????? | | ##" #????# ?# + %#????????????????????? | | ?## #????# ??# # #????????????????????? | | ??# #????# ???# """ # #????????????????????? | | ??# #????#????+ """ ?# k #????????????????????? | | ??# #?????????# """ ?# u #????????????????????? | | ??# #?????????# ??# c %##???????????????????? | | ??# #?????????# ??#kc ##???????????????????? | | ??# #??????????#####??##R u#????????????????????? | | ### #?????????????????## #????????????????????? | | #?????????????????## @ #????????????????????? | | #????????####?????## % u##???????????????????? | | #????????# ! #% #????????????????????? | | #?????Y??+ = #R ##???????????????????? | | #????????# #u #????????????????????? | | #????????# """"" + % #????????????????????? | | #????????# """"" # k#????????????????????? | | #????????# """"" # #????????????????????? | | #?????????? # k#????????????????????? | | #????????? ?# #????????????????????? | | #????????##?###/##?# #????????????????????? | | ############### #??# #????????????????????? | | # * # #??# #????????????????????? | | # # #??# #????????????????????? | | # " " # #??# #????????????????????? | | # ""G"" # #??# #????????????????????? | | # " #??# #????????????????????? | | + # ##?# #????????????????????? | | ############### #### ##########+####??????? | | #???????????# ^ #??????? | | #???????????# % #??????? | | #???????????# #??????? | | #??????? | | ##########+### ^ #??????? | | #??# = #?? #??????? | +----------------------------------------------------+ Best States ------------- Heat Dissipation 46 Energy Generation 10 Energy Capacity 125 Matter Stores 300 Matter Capacity 300 Sight Range 18 Terrain Scan Density 210 Jamming Range 12 Additional Mass Support 9 Corruption Block 24 Evasion (%) 50 Offensive Hacking 10 Defensive Hacking 10 Item Schematics ----------------- Signal Interpreter | -10/Materials | Hacked Robot Schematics ------------------ None Fabricated ------------ Nothing Alien Tech Used ----------------- None Achievements -------------- None Challenges ------------ None Game ------ Seed PhaseAnalysisPlating Manual? 0 Play Time 00:41:41 Cumulative 121.0 hours Start 2025.03.20 @ 15:30:08 End 2025.03.20 @ 16:53:25 Sessions 3 Manual Loads 0 Difficulty Rogue Special Mode None Game No. 98 Rogue 98 Adventurer 0 Explorer 0 Win Type - Total 4 Types 4/0/0/0/0/0/0/0/0 Lore% 53 Gallery% 58 Achievement% 48 Wizard Run 0 Options --------- Layout 0 ASCII 0 Keyboard 1 Movement Numpad Keybinds 0 Fullscreen 1 Font 36/Smallcaps Map View 76x50 Zoom Use 0% Tactical HUD 1 Map Filters NONE Filters NONE Steam 1 RUN: e459c376-9fda-47a4-a81a-ba12ab0fab23